bitfinex/quotes_BTCUSD_20250530
["timestamp","ask_amount","ask_price","bid_price","bid_amount"]
[1748606456501,0.37303647,105900.0,105890.0,0.04636914]
[1748606456948,0.37303647,105900.0,105890.0,0.04637068]
[1748606457161,0.80554769,105900.0,105890.0,9.235e-05]
[1748606457385,0.83389869,105900.0,105890.0,9.235e-05]
[1748606457601,0.84969869,105900.0,105890.0,9.235e-05]
[1748606458239,0.75618747,105900.0,105890.0,9.235e-05]
[1748606458746,0.75918747,105900.0,105890.0,9.235e-05]
[1748606458958,0.75718747,105900.0,105890.0,9.235e-05]
[1748606459161,0.74338747,105900.0,105890.0,9.235e-05]
[1748606459793,0.74138747,105900.0,105890.0,9.235e-05]
[1748606460004,0.74538747,105900.0,105890.0,9.235e-05]
[1748606461939,0.74538747,105900.0,105890.0,0.03069235]
[1748606462155,0.7451986,105900.0,105890.0,0.03069235]
[1748606462376,0.4051986,105900.0,105890.0,0.03069235]
[1748606462604,0.3768476,105900.0,105890.0,0.03069235]
[1748606463275,0.3768476,105900.0,105890.0,0.03972905]
[1748606463488,0.3768476,105900.0,105890.0,0.04634857]
[1748606463700,0.3768476,105900.0,105890.0,0.03972905]
[1748606463905,0.3698476,105900.0,105890.0,0.03972905]
[1748606464326,0.3728476,105900.0,105890.0,0.03972905]
[1748606464773,0.3728476,105900.0,105890.0,0.04634843]
[1748606465032,0.3728476,105900.0,105890.0,0.04634837]
[1748606465479,0.3748476,105900.0,105890.0,0.04634798]
[1748606466384,0.3748476,105900.0,105890.0,0.04634821]
[1748606467025,0.3748476,105900.0,105890.0,0.04634815]
[1748606467898,0.3748476,105900.0,105890.0,0.03972905]
[1748606468115,0.3748476,105900.0,105890.0,0.04634775]
[1748606468336,0.3748476,105900.0,105890.0,0.03972905]
[1748606469214,0.3748476,105900.0,105890.0,0.0463475]
[1748606469430,0.3748476,105900.0,105890.0,0.03972905]
[1748606470065,0.3748476,105900.0,105890.0,0.04634723]
[1748606470966,0.3748476,105900.0,105890.0,0.04634695]
[1748606471392,0.2870076,105900.0,105890.0,0.04634695]
[1748606471647,0.3751676,105900.0,105890.0,0.04634675]
[1748606471852,0.6634476,105900.0,105890.0,0.04634675]
[1748606472307,0.6634476,105900.0,105890.0,0.04634211]
[1748606472733,0.6634476,105900.0,105890.0,0.04774054]
[1748606472980,0.6634476,105900.0,105890.0,0.05435787]
[1748606473184,1.0034476,105900.0,105890.0,0.05435787]
[1748606473399,1.0034476,105900.0,105890.0,0.05435802]
[1748606473612,1.0034476,105900.0,105890.0,0.05435781]
[1748606473830,1.0034476,105900.0,105890.0,0.04774054]
[1748606474041,1.0034476,105900.0,105890.0,0.05435795]
[1748606474281,0.6634476,105900.0,105890.0,0.05435776]
[1748606475344,0.6634476,105900.0,105890.0,0.04774054]
[1748606475556,0.6634476,105900.0,105890.0,0.0543578]
[1748606475983,0.6634476,105900.0,105890.0,0.05435775]
[1748606476639,0.6632876,105900.0,105890.0,0.05435717]
[1748606476873,0.6632876,105900.0,105890.0,0.05435712]
[1748606477092,0.2870076,105900.0,105890.0,0.05435712]
[1748606477306,0.6632876,105900.0,105890.0,0.05435712]
[1748606477518,0.6632876,105900.0,105890.0,0.05435728]
[1748606477739,0.6632876,105900.0,105890.0,0.05435723]
[1748606477957,0.6632876,105900.0,105890.0,0.05435719]
[1748606478638,0.6632876,105900.0,105890.0,0.05435734]
[1748606478886,0.6632876,105900.0,105890.0,0.05435698]
[1748606479110,0.6632876,105900.0,105890.0,0.05435699]
[1748606479312,0.6632876,105900.0,105890.0,0.05435696]
[1748606479570,0.6632876,105900.0,105890.0,0.04774054]
[1748606479786,0.6632876,105900.0,105890.0,0.05435678]
[1748606479998,0.6632476,105900.0,105890.0,0.05435678]
[1748606480866,0.6632476,105900.0,105890.0,0.04773829]
[1748606481082,0.57223365,105900.0,105890.0,0.06889497]
[1748606481300,0.57223365,105900.0,105890.0,0.06889477]
[1748606481522,0.57223365,105900.0,105890.0,0.06889428]
[1748606481734,0.57223365,105900.0,105890.0,0.06227914]
[1748606481942,0.57223365,105900.0,105890.0,0.06889434]
[1748606482369,0.57223365,105900.0,105890.0,0.071255]
[1748606482574,0.57223365,105900.0,105890.0,0.0646398]
[1748606483023,0.57223365,105900.0,105890.0,0.07125456]
[1748606483237,0.57223365,105900.0,105890.0,0.0646398]
[1748606483446,0.57223365,105900.0,105890.0,0.07125415]
[1748606483871,0.57223365,105900.0,105890.0,0.07125417]
[1748606484352,0.57223365,105900.0,105890.0,0.06889351]
[1748606484624,0.57223365,105900.0,105890.0,0.07125382]
[1748606485083,0.57223365,105900.0,105890.0,0.0646398]
[1748606485305,0.57223365,105900.0,105890.0,0.06889316]
[1748606486209,0.57223365,105900.0,105890.0,0.06889293]
[1748606486947,0.57223365,105900.0,105890.0,0.06889288]
[1748606487221,0.57223365,105900.0,105890.0,0.06889286]
[1748606487970,0.57207365,105900.0,105890.0,0.06889686]
[1748606488406,0.57207365,105900.0,105890.0,0.06227914]
[1748606488648,0.57207365,105900.0,105890.0,0.06890625]
[1748606488861,0.57207365,105900.0,105890.0,0.06890611]
[1748606489087,0.57207365,105900.0,105890.0,0.0689061]
[1748606489526,0.57207365,105900.0,105890.0,0.06890599]
[1748606490026,0.57199365,105900.0,105890.0,0.07126664]
[1748606490271,0.19595365,105900.0,105890.0,0.06463979]
[1748606490513,0.28411365,105900.0,105890.0,0.08255364]
[1748606490744,0.57199365,105900.0,105890.0,0.07592704]
[1748606491279,0.57199365,105900.0,105890.0,0.08255362]
[1748606492404,0.19595365,105900.0,105890.0,0.08255362]
[1748606492850,0.19595365,105900.0,105890.0,0.08918033]
[1748606493055,0.19595365,105900.0,105890.0,0.08918026]
[1748606493493,0.19595365,105900.0,105890.0,0.08917994]
[1748606493742,0.19595365,105900.0,105890.0,0.08921794]
[1748606493998,0.19595365,105900.0,105890.0,0.0825916]
[1748606494286,0.48371365,105900.0,105890.0,0.08921795]
[1748606494744,0.48371365,105900.0,105890.0,0.089218]
[1748606494970,0.48371365,105900.0,105890.0,0.0825916]
[1748606495201,0.48371365,105900.0,105890.0,0.0892175]
[1748606495660,0.48371365,105900.0,105890.0,0.08921718]
[1748606495885,0.48371365,105900.0,105890.0,0.08921714]
[1748606496126,0.48363365,105900.0,105890.0,0.10428497]
[1748606496360,0.48363365,105900.0,105890.0,0.10428435]
[1748606496593,0.48363365,105900.0,105890.0,0.10428447]
[1748606496837,0.48363365,105900.0,105890.0,0.09765943]
[1748606497559,0.48363365,105900.0,105890.0,0.10192384]
[1748606498026,0.48367365,105900.0,105890.0,0.10427528]
[1748606498471,0.19595365,105900.0,105890.0,0.42634754]
[1748606498690,0.19595365,105900.0,105890.0,0.43060985]
[1748606498904,0.19595365,105900.0,105890.0,0.42398689]
[1748606499353,0.19395365,105900.0,105890.0,0.42398689]
[1748606499559,0.18151123,105900.0,105890.0,0.51504084]
[1748606499773,0.18151123,105900.0,105890.0,0.71335975]
[1748606500026,0.00944251,105900.0,105890.0,1.03056959]
[1748606500242,0.00944251,105900.0,105890.0,1.08069613]
[1748606500243,0.02832708,105900.0,105890.0,1.08069613]
[1748606500460,0.00567369,105900.0,105890.0,1.08731674]
[1748606500677,0.00667369,105900.0,105890.0,1.08731674]
[1748606501096,0.01511602,105900.0,105890.0,1.08731674]
[1748606501343,0.02455862,105900.0,105890.0,1.08731674]
[1748606501552,0.02455862,105900.0,105890.0,1.08931674]
[1748606501766,0.207723,105910.0,105900.0,0.22228355]
[1748606501995,0.22660632,105910.0,105900.0,0.37846657]
[1748606502223,0.22660632,105910.0,105900.0,0.36902415]
[1748606502224,0.21716497,105910.0,105900.0,0.36902415]
[1748606502663,0.21716497,105910.0,105900.0,0.76902415]
[1748606503082,0.21716497,105910.0,105900.0,0.77564351]
[1748606503304,0.21716497,105910.0,105900.0,0.76902415]
[1748606503982,0.21716497,105910.0,105900.0,0.76902424]
[1748606504197,0.20772335,105910.0,105900.0,0.76902424]
[1748606504409,0.19828155,105910.0,105900.0,0.75958164]
[1748606504637,0.19828155,105910.0,105900.0,0.76902424]
[1748606504844,0.19828155,105910.0,105900.0,0.75958164]
[1748606505058,0.19828155,105910.0,105900.0,0.4702275]
[1748606505307,0.18883958,105910.0,105900.0,0.7579875]
[1748606505747,0.18883958,105910.0,105900.0,0.36460766]
[1748606505965,0.18883958,105910.0,105900.0,0.3579875]
[1748606506193,0.18883958,105910.0,105900.0,0.7579875]
[1748606506620,0.18883958,105910.0,105900.0,0.76460808]
[1748606507269,0.18883958,105910.0,105900.0,0.7645974]
[1748606507956,0.18883958,105910.0,105900.0,0.76459706]
[1748606509248,0.18883958,105910.0,105900.0,0.3579875]
[1748606509678,0.18883958,105910.0,105900.0,0.76459157]
[1748606509902,0.18883958,105910.0,105900.0,0.76459155]
[1748606510566,0.18883958,105910.0,105900.0,0.7645595]
[1748606510996,0.18883958,105910.0,105900.0,0.76455638]
[1748606511224,0.18883958,105910.0,105900.0,0.4767964]
[1748606511450,0.18883958,105910.0,105900.0,0.76431642]
[1748606511681,0.18883958,105910.0,105900.0,0.76431468]
[1748606512554,0.18883958,105910.0,105900.0,0.76431365]
[1748606512755,0.18883958,105910.0,105900.0,0.36431365]
[1748606512959,0.18883958,105910.0,105900.0,0.56261393]
[1748606513170,0.18883958,105910.0,105900.0,0.97205636]
[1748606513385,0.18883958,105910.0,105900.0,0.77375619]
[1748606513597,0.18883958,105910.0,105900.0,0.76715832]
[1748606513805,0.18883958,105910.0,105900.0,1.06311032]
[1748606513991,0.18883958,105910.0,105900.0,1.05366754]
[1748606514197,0.18883958,105910.0,105900.0,0.85536726]
[1748606514320,0.18883958,105910.0,105900.0,0.8487694]
[1748606514725,0.18883958,105910.0,105900.0,0.84635543]
[1748606514932,0.18883958,105910.0,105900.0,0.85536532]
[1748606515177,0.18883958,105910.0,105900.0,0.85536526]
[1748606515507,0.18883958,105910.0,105900.0,0.85536552]
[1748606515761,0.18883958,105910.0,105900.0,0.85536569]
[1748606516773,0.18883958,105910.0,105900.0,0.85536597]
[1748606517021,0.18883958,105910.0,105900.0,0.84876832]
[1748606517233,0.18883958,105910.0,105900.0,0.85536679]
[1748606517533,0.18883958,105910.0,105900.0,1.0442242]
[1748606517941,0.18883958,105910.0,105900.0,1.04422459]
[1748606518149,0.18883958,105910.0,105900.0,1.0442246]
[1748606518357,0.19828155,105910.0,105900.0,1.03762573]
[1748606518526,0.20772326,105910.0,105900.0,1.05366747]
[1748606518752,0.20772326,105910.0,105900.0,1.0470686]
[1748606519072,0.20772326,105910.0,105900.0,1.05366887]
[1748606519272,0.20772326,105910.0,105900.0,1.0470686]
[1748606520099,0.20772326,105910.0,105900.0,1.05367116]
[1748606520457,0.20772326,105910.0,105900.0,1.0470686]
[1748606520649,0.20772326,105910.0,105900.0,1.06595407]
[1748606521254,0.20772326,105910.0,105900.0,1.08199975]
[1748606521460,0.21716453,105910.0,105900.0,1.41539604]
[1748606521780,0.21716506,105910.0,105900.0,1.3909102]
[1748606522109,0.21716506,105910.0,105900.0,1.38807407]
[1748606522309,0.21716506,105910.0,105900.0,1.38147183]
[1748606522493,0.21716506,105910.0,105900.0,1.39751667]
[1748606522680,0.21716506,105910.0,105900.0,1.36258636]
[1748606522841,0.19828155,105910.0,105900.0,0.78061415]
[1748606523047,0.19828155,105910.0,105900.0,1.09798228]
[1748606523267,0.19828155,105910.0,105900.0,1.09204758]
[1748606523469,0.19828155,105910.0,105900.0,1.08544143]
[1748606523677,0.19828155,105910.0,105900.0,1.10658877]
[1748606523894,0.19828155,105910.0,105900.0,1.10198228]
[1748606524107,0.19828155,105910.0,105900.0,0.81418228]
[1748606524918,0.19828155,105910.0,105900.0,0.82079444]
[1748606525584,0.19828155,105910.0,105900.0,0.81418228]
[1748606525983,0.19828155,105910.0,105900.0,0.82079457]
[1748606526209,0.19828155,105910.0,105900.0,0.80577804]
[1748606526343,0.19828155,105910.0,105900.0,0.80577806]
[1748606527153,0.19828155,105910.0,105900.0,0.80577855]
[1748606527604,0.19828155,105910.0,105900.0,0.80578953]
[1748606527827,0.20772326,105910.0,105900.0,1.00408959]
[1748606528049,0.20772326,105910.0,105900.0,1.01353185]
[1748606528292,0.18507177,105910.0,105900.0,1.01353179]
[1748606528727,0.18507177,105910.0,105900.0,1.02297448]
[1748606529206,0.18507177,105910.0,105900.0,1.01635149]
[1748606529438,0.18507177,105910.0,105900.0,1.02297249]
[1748606529652,0.18507177,105910.0,105900.0,1.03241509]
[1748606529874,0.18507177,105910.0,105900.0,1.02297249]
[1748606530118,0.18507177,105910.0,105900.0,1.02297166]
[1748606531030,0.18507177,105910.0,105900.0,1.11402561]
[1748606531706,0.18507177,105910.0,105900.0,1.10740544]
[1748606531955,0.18507177,105910.0,105900.0,1.11402726]
[1748606532186,0.18507177,105910.0,105900.0,1.13291219]
[1748606532409,0.18507177,105910.0,105900.0,1.19800396]
[1748606532652,0.18885589,105930.0,105920.0,0.3712]
[1748606532877,0.18885589,105930.0,105920.0,0.3952951]
[1748606533123,0.18885589,105930.0,105920.0,0.40191787]
[1748606533352,0.18885589,105930.0,105920.0,0.40191776]
[1748606533579,0.18885589,105930.0,105920.0,0.3952951]
[1748606533825,0.18885589,105930.0,105920.0,0.3640951]
[1748606534052,0.18985589,105930.0,105920.0,0.37071772]
[1748606534258,0.18985589,105930.0,105920.0,0.38581772]
[1748606534715,0.19085589,105930.0,105920.0,0.38581772]
[1748606534936,0.19085589,105930.0,105920.0,0.3791951]
[1748606535162,0.19085589,105930.0,105920.0,0.38581668]
[1748606535383,0.19085589,105930.0,105920.0,0.38581669]
[1748606535884,0.19085589,105930.0,105920.0,0.40131669]
[1748606536349,0.19085589,105930.0,105920.0,0.40131584]
[1748606536549,0.19085589,105930.0,105920.0,0.40131529]
[1748606536811,0.15085589,105930.0,105920.0,0.40131529]
[1748606537272,0.15085589,105930.0,105920.0,0.40131518]
[1748606537499,0.15085589,105930.0,105920.0,0.3946951]
[1748606537978,0.15085589,105930.0,105920.0,0.40131485]
[1748606538203,0.15085589,105930.0,105920.0,0.3946951]
[1748606538696,0.15085589,105930.0,105920.0,0.40131481]
[1748606538930,0.15085589,105930.0,105920.0,0.40793451]
[1748606539165,0.15085589,105930.0,105920.0,0.40132729]
[1748606540977,0.15085589,105930.0,105920.0,0.40794701]
[1748606541196,0.15085589,105930.0,105920.0,0.40132729]
[1748606542771,0.15085589,105930.0,105920.0,0.40794754]
[1748606542988,0.15085589,105930.0,105920.0,0.40794691]
[1748606543430,0.15085589,105930.0,105920.0,0.40132717]
[1748606544124,0.11085589,105930.0,105920.0,0.03072717]
[1748606544365,0.14385589,105930.0,105920.0,0.40318526]
[1748606544606,0.23490984,105930.0,105920.0,0.04202426]
[1748606544844,0.68622072,105930.0,105920.0,0.02227874]
[1748606545746,0.68622072,105930.0,105920.0,0.01324149]
[1748606546015,0.68622072,105930.0,105920.0,0.02228227]
[1748606546238,0.20190984,105930.0,105920.0,0.02890505]
[1748606546459,0.11085589,105930.0,105920.0,0.03682312]
[1748606546685,0.11085589,105930.0,105920.0,0.0481241]
[1748606546897,0.11085589,105930.0,105920.0,0.05474543]
[1748606547106,0.11085589,105930.0,105920.0,0.05474567]
[1748606547529,0.14285589,105930.0,105920.0,0.0547408]
[1748606547988,0.14285589,105930.0,105920.0,0.05474112]
[1748606548208,0.14285589,105930.0,105920.0,0.04811923]
[1748606550386,0.14285589,105930.0,105920.0,0.05474129]
[1748606550595,0.14285589,105930.0,105920.0,0.04811923]
[1748606550808,0.14285589,105930.0,105920.0,0.05474129]
[1748606551038,0.11085589,105930.0,105920.0,0.04811923]
[1748606551459,0.11085589,105930.0,105920.0,0.05474129]
[1748606551888,0.11085589,105930.0,105920.0,0.04811923]
[1748606552363,0.11085589,105930.0,105920.0,0.05474129]
[1748606552604,0.11085589,105930.0,105920.0,0.04811923]
[1748606553061,0.11085589,105930.0,105920.0,0.05474129]
[1748606553294,0.11085589,105930.0,105920.0,0.04811923]
[1748606553526,0.11085589,105930.0,105920.0,0.05474129]
[1748606553760,0.11085589,105930.0,105920.0,0.05474341]
[1748606554241,0.11085589,105930.0,105920.0,0.04812127]
[1748606554463,0.11085589,105930.0,105920.0,0.05474377]
[1748606554677,0.11085589,105930.0,105920.0,0.05474379]
[1748606554913,0.11085589,105930.0,105920.0,0.05474375]
[1748606555130,0.14235589,105930.0,105920.0,0.04812127]
[1748606555342,0.14235589,105930.0,105920.0,0.05474388]
[1748606555775,0.12605589,105930.0,105920.0,0.05474388]
[1748606555991,0.12605589,105930.0,105920.0,0.04812127]
[1748606556230,0.11085589,105930.0,105920.0,0.05474524]
[1748606556453,0.11085589,105930.0,105920.0,0.05474528]
[1748606556952,0.11085589,105930.0,105920.0,0.05474566]
[1748606557380,0.11085589,105930.0,105920.0,0.04812254]
[1748606557585,0.11085589,105930.0,105920.0,0.05474571]
[1748606557794,0.11085589,105930.0,105920.0,0.05474576]
[1748606558009,0.11085589,105930.0,105920.0,0.05474573]
[1748606558226,0.11085589,105930.0,105920.0,0.05474575]
[1748606558442,0.11085589,105930.0,105920.0,0.04812254]
[1748606558923,0.11085589,105930.0,105920.0,0.05474519]
[1748606559150,0.11085589,105930.0,105920.0,0.08890515]
[1748606559380,0.11085589,105930.0,105920.0,0.08614519]
[1748606559616,0.11085589,105930.0,105920.0,0.0861448]
[1748606560297,0.11085589,105930.0,105920.0,0.08614292]
[1748606560517,0.11085589,105930.0,105920.0,0.07952095]
[1748606560729,0.11085589,105930.0,105920.0,0.08614292]
[1748606561604,0.11085589,105930.0,105920.0,0.08614322]
[1748606562268,0.11085589,105930.0,105920.0,0.07952095]
[1748606562497,0.11085589,105930.0,105920.0,0.08614292]
[1748606562725,0.11085589,105930.0,105920.0,0.09440307]
[1748606563577,0.11085589,105930.0,105920.0,0.09440358]
[1748606563789,0.11085589,105930.0,105920.0,0.0877811]
[1748606564005,0.11085589,105930.0,105920.0,0.09440338]
[1748606564218,0.11085589,105930.0,105920.0,0.09440357]
[1748606564673,0.11085589,105930.0,105920.0,0.09439881]
[1748606565104,0.11085589,105930.0,105920.0,0.09439723]
[1748606565525,0.11085589,105930.0,105920.0,0.09439726]
[1748606565748,0.11085589,105930.0,105920.0,0.08777634]
[1748606566188,0.11085589,105930.0,105920.0,0.09439758]
[1748606566884,0.11085589,105930.0,105920.0,0.09439815]
[1748606567112,0.11085589,105930.0,105920.0,0.08777634]
[1748606567343,0.11085589,105930.0,105920.0,0.09439815]
[1748606567742,0.11085589,105930.0,105920.0,0.08777634]
[1748606568210,0.11085589,105930.0,105920.0,0.09439823]
[1748606568662,0.11085589,105930.0,105920.0,0.10946844]
[1748606568880,0.11085589,105930.0,105920.0,0.10947076]
[1748606569785,0.11085589,105930.0,105920.0,0.10284887]
[1748606569999,0.11085589,105930.0,105920.0,0.10947076]
[1748606570648,0.11085589,105930.0,105920.0,0.10947083]
[1748606570860,0.11085589,105930.0,105920.0,0.10947088]
[1748606571076,0.11085589,105930.0,105920.0,0.10284887]
[1748606571289,0.11085589,105930.0,105920.0,0.1094709]
[1748606571515,0.11085589,105930.0,105920.0,0.10284887]
[1748606571931,0.11085589,105930.0,105920.0,0.1094709]
[1748606572818,0.11085589,105930.0,105920.0,0.10284887]
[1748606573037,0.11085589,105930.0,105920.0,0.102854]
[1748606573246,0.11085589,105930.0,105920.0,0.10947745]
[1748606573447,0.11085589,105930.0,105920.0,0.102854]
[1748606573657,0.11085589,105930.0,105920.0,0.10947745]
[1748606574148,0.11085589,105930.0,105920.0,0.10947738]
[1748606575893,0.11085589,105930.0,105920.0,0.102854]
[1748606576097,0.07085589,105930.0,105920.0,0.10947743]
[1748606576338,0.07085589,105930.0,105920.0,0.1094774]
[1748606576654,0.07085589,105930.0,105920.0,0.10947731]
[1748606577121,0.07085589,105930.0,105920.0,0.09817659]
[1748606577331,0.07085589,105930.0,105920.0,0.09817644]
[1748606577541,0.07085589,105930.0,105920.0,0.09155328]
[1748606577751,0.07085589,105930.0,105920.0,0.09817634]
[1748606578161,0.07085589,105930.0,105920.0,0.09155328]
[1748606578368,0.07085589,105930.0,105920.0,0.09817634]
[1748606578573,0.07085589,105930.0,105920.0,0.09155328]
[1748606578776,0.07085589,105930.0,105920.0,0.09817628]
[1748606579195,0.07085589,105930.0,105920.0,0.09155328]
[1748606580972,0.07085589,105930.0,105920.0,0.09155619]
[1748606581381,0.07085589,105930.0,105920.0,0.09817926]
[1748606581591,0.07085589,105930.0,105920.0,0.09155619]
[1748606581797,0.07085589,105930.0,105920.0,0.09817926]
[1748606582189,0.07085589,105930.0,105920.0,0.09155619]
[1748606583049,0.002,105930.0,105920.0,0.10286224]
[1748606583282,0.19083168,105930.0,105920.0,0.10948657]
[1748606583492,0.19083168,105930.0,105920.0,0.10286224]
[1748606583930,0.19083168,105930.0,105920.0,0.10948662]
[1748606584173,0.19083168,105930.0,105920.0,0.10286224]
[1748606585026,0.19083168,105930.0,105920.0,0.09155619]
[1748606585239,0.19083168,105930.0,105920.0,0.10054007]
[1748606585455,0.19083168,105930.0,105920.0,0.0939161]
[1748606585654,0.19083168,105930.0,105920.0,0.10054003]
[1748606586078,0.19083168,105930.0,105920.0,0.0939161]
[1748606587503,0.19083168,105930.0,105920.0,0.10054177]
[1748606587712,0.19083168,105930.0,105920.0,0.49921768]
[1748606587889,0.19083168,105930.0,105920.0,0.49685777]
[1748606588088,0.19083168,105930.0,105920.0,0.48178756]
[1748606588497,0.19083168,105930.0,105920.0,0.48179254]
[1748606588898,0.19083168,105930.0,105920.0,0.48841713]
[1748606589188,0.19083168,105930.0,105920.0,0.48179254]
[1748606589514,0.19083168,105930.0,105920.0,0.49686509]
[1748606591481,0.15083168,105930.0,105920.0,0.49686509]
[1748606592129,0.15083168,105930.0,105920.0,0.50349093]
[1748606592328,0.15083168,105930.0,105920.0,0.49686509]
[1748606592733,0.15083168,105930.0,105920.0,0.50349092]
[1748606593367,0.15083168,105930.0,105920.0,0.79711652]
[1748606593368,0.20768385,105930.0,105920.0,0.79711652]
[1748606593573,0.2265637,105930.0,105920.0,0.76373749]
[1748606593773,0.21335618,105930.0,105920.0,1.4418967]
[1748606593985,0.20391652,105930.0,105920.0,1.45133718]
[1748606594407,0.20391652,105930.0,105920.0,1.44471804]
[1748606594611,0.20391652,105930.0,105920.0,1.45133702]
[1748606594810,0.20391652,105930.0,105920.0,1.45333702]
[1748606595017,0.20391652,105930.0,105920.0,1.45333719]
[1748606595221,0.20391652,105930.0,105920.0,1.45332975]
[1748606595638,0.20391652,105930.0,105920.0,1.48766383]
[1748606595809,0.20391652,105930.0,105920.0,1.44771821]
[1748606596420,0.20391652,105930.0,105920.0,1.48105185]
[1748606596597,0.20391652,105930.0,105920.0,1.49610344]
[1748606596813,0.20391652,105930.0,105920.0,1.4989334]
[1748606597014,0.20391652,105930.0,105920.0,1.5009334]
[1748606597222,0.20391652,105930.0,105920.0,1.50086904]
[1748606597425,0.20391652,105930.0,105920.0,1.50748007]
[1748606597650,0.20391652,105930.0,105920.0,1.50086904]
[1748606597848,0.20391652,105930.0,105920.0,1.50747933]
[1748606598049,0.20391652,105930.0,105920.0,1.50747934]
[1748606598463,0.20391652,105930.0,105920.0,1.50086904]
[1748606598668,0.16391652,105930.0,105920.0,1.50747675]
[1748606598889,0.16391652,105930.0,105920.0,1.50747449]
[1748606600193,0.16391652,105930.0,105920.0,1.49803271]
[1748606600388,0.16391652,105930.0,105920.0,1.49803273]
[1748606600595,0.01887905,105930.0,105920.0,1.5008666]
[1748606600767,0.02831888,105930.0,105920.0,1.50747325]
[1748606601126,0.01887905,105930.0,105920.0,1.50747325]
[1748606601330,0.01887905,105930.0,105920.0,1.43322874]
[1748606601505,0.01887905,105930.0,105920.0,1.50744432]
[1748606601721,0.01887905,105930.0,105920.0,1.50744395]
[1748606601933,0.01887905,105930.0,105920.0,1.50083767]
[1748606602343,0.01887905,105930.0,105920.0,1.50744379]
[1748606602550,0.01887905,105930.0,105920.0,1.50744468]
[1748606602762,0.01887905,105930.0,105920.0,1.50744518]
[1748606602976,0.02831888,105930.0,105920.0,1.47413015]
[1748606603197,0.02831888,105930.0,105920.0,1.47413019]
[1748606603410,0.01887905,105930.0,105920.0,1.47412966]
[1748606604067,0.0283188,105930.0,105920.0,1.47413065]
[1748606604290,0.0283188,105930.0,105920.0,1.47413066]
[1748606604726,0.0283188,105930.0,105920.0,1.46752259]
[1748606604935,0.0283188,105930.0,105920.0,1.47413076]
[1748606605602,0.0283188,105930.0,105920.0,1.47412884]
[1748606605813,0.19605063,105940.0,105930.0,0.22378377]
[1748606606017,0.20548948,105940.0,105930.0,0.25445873]
[1748606606223,0.20548948,105940.0,105930.0,0.25728755]
[1748606606445,0.02943716,105960.0,105950.0,0.0157]
[1748606606676,0.22762534,105960.0,105950.0,0.6832511]
[1748606606947,0.22762534,105960.0,105950.0,0.88995882]
[1748606607162,0.22762534,105960.0,105950.0,0.7049487]
[1748606607382,0.22762534,105960.0,105950.0,0.68391512]
[1748606607586,0.22762534,105960.0,105950.0,0.33731059]
[1748606607793,0.22762534,105960.0,105950.0,0.35341059]
[1748606608019,0.22762534,105960.0,105950.0,0.37201059]
[1748606608444,0.22762534,105960.0,105950.0,0.37861799]
[1748606608659,0.22762534,105960.0,105950.0,0.36734511]
[1748606608870,0.22762534,105960.0,105950.0,0.37861547]
[1748606609075,0.22762534,105960.0,105950.0,0.37961571]
[1748606609491,0.22762534,105960.0,105950.0,0.37961567]
[1748606609704,0.22762534,105960.0,105950.0,0.37961568]
[1748606609904,0.22762534,105960.0,105950.0,0.37299743]
[1748606610059,0.22762534,105960.0,105950.0,0.37960366]
[1748606610256,0.22762534,105960.0,105950.0,0.79873845]
[1748606610859,0.22762534,105960.0,105950.0,0.79213221]
[1748606611221,0.22762534,105960.0,105950.0,0.79873776]
[1748606611337,0.22762534,105960.0,105950.0,0.79873767]
[1748606611542,0.22762534,105960.0,105950.0,0.79213221]
[1748606612585,0.18762534,105960.0,105950.0,1.3303389]
[1748606612784,0.18762534,105960.0,105950.0,1.31907005]
[1748606613400,0.18762534,105960.0,105950.0,1.33511324]
[1748606613615,0.18762534,105960.0,105950.0,1.32850837]
[1748606614257,0.18762534,105960.0,105950.0,1.32850471]
[1748606614669,0.18762534,105960.0,105950.0,0.80404721]
[1748606614875,0.21882534,105960.0,105950.0,0.38240947]
[1748606615124,0.21882534,105960.0,105950.0,0.03775265]
[1748606615561,0.21882534,105960.0,105950.0,0.04901592]
[1748606615780,0.21882534,105960.0,105950.0,0.04901719]
[1748606616852,0.21882534,105960.0,105950.0,0.03775392]
[1748606617288,0.21882534,105960.0,105950.0,0.0311462]
[1748606617498,0.21882534,105960.0,105950.0,0.03775562]
[1748606617719,0.21882534,105960.0,105950.0,0.03775638]
[1748606617936,0.21882534,105960.0,105950.0,0.03775631]
[1748606618153,0.21882534,105960.0,105950.0,0.03350553]
[1748606618394,0.21882534,105960.0,105950.0,0.04011563]
[1748606618814,0.21882534,105960.0,105950.0,0.03350553]
[1748606619033,0.21882534,105960.0,105950.0,0.04011627]
[1748606619236,0.21882534,105960.0,105950.0,0.04011647]
[1748606619690,0.17882534,105960.0,105950.0,0.03350553]
[1748606619896,0.17882534,105960.0,105950.0,0.04011859]
[1748606620318,0.17882534,105960.0,105950.0,0.0401192]
[1748606620956,0.17882534,105960.0,105950.0,0.04011972]
[1748606621162,0.17882534,105960.0,105950.0,0.03350553]
[1748606621585,0.17882534,105960.0,105950.0,0.04011964]
[1748606621796,0.17882534,105960.0,105950.0,0.03350553]
[1748606622678,0.17882534,105960.0,105950.0,0.04480948]
[1748606623139,0.16372534,105960.0,105950.0,0.05142611]
[1748606623403,0.14762534,105960.0,105950.0,0.04480948]
[1748606624093,0.14762534,105960.0,105950.0,0.05142604]
[1748606624327,0.14762534,105960.0,105950.0,0.05142605]
[1748606624572,0.14762534,105960.0,105950.0,0.05142646]
[1748606624829,0.14762534,105960.0,105950.0,0.05142679]
[1748606625307,0.14762534,105960.0,105950.0,0.05142676]
[1748606626226,0.14762534,105960.0,105950.0,0.05142714]
[1748606626438,0.14762534,105960.0,105950.0,0.04480948]
[1748606626662,0.14762534,105960.0,105950.0,0.05142714]
[1748606626905,0.10762534,105960.0,105950.0,0.05142714]
[1748606627139,0.10762534,105960.0,105950.0,0.0514271]
[1748606627388,0.10762534,105960.0,105950.0,0.05142748]
[1748606627609,0.10762534,105960.0,105950.0,0.05142753]
[1748606628064,0.12292534,105960.0,105950.0,0.04480948]
[1748606628280,0.12292534,105960.0,105950.0,0.05142762]
[1748606628546,0.12292534,105960.0,105950.0,0.05142796]
[1748606628810,0.12292534,105960.0,105950.0,0.04480948]
[1748606629075,0.12292534,105960.0,105950.0,0.05142797]
[1748606629330,0.12292534,105960.0,105950.0,0.05142828]
[1748606629569,0.10762534,105960.0,105950.0,0.05142828]
[1748606630011,0.10762534,105960.0,105950.0,0.05142884]
[1748606630465,0.10762534,105960.0,105950.0,0.05142885]
[1748606631396,0.10762534,105960.0,105950.0,0.05144474]
[1748606632189,0.10762534,105960.0,105950.0,0.05144497]
[1748606633185,0.10762534,105960.0,105950.0,0.05144519]
[1748606633186,0.13922534,105960.0,105950.0,0.05144519]
[1748606633437,0.10762534,105960.0,105950.0,0.05144527]
[1748606633700,0.10762534,105960.0,105950.0,0.05144528]
[1748606633952,0.12292534,105960.0,105950.0,0.05144528]
[1748606634189,0.08292534,105960.0,105950.0,0.04482473]
[1748606634409,0.06762534,105960.0,105950.0,0.05144541]
[1748606634658,0.58309995,105960.0,105950.0,0.05144541]
[1748606634896,1.31492061,105960.0,105950.0,0.01865714]
[1748606635138,1.69028061,105960.0,105950.0,0.003]
[1748606635374,2.09784061,105960.0,105950.0,0.003]
[1748606635653,2.09884061,105960.0,105950.0,0.003]